[Event "9th RTU Rapid 2019"]
[Site "Riga"]
[Date "2019.08.04"]
[Round "4.5"]
[White "Grinev, Valeriy"]
[Black "Vishnu Prasanna. V"]
[Result "0-1"]
[WhiteElo "2287"]
[BlackElo "2465"]
[PlyCount "126"]
[EventDate "2019.08.05"]
[EventType "swiss"]
[EventCountry "LAT"]
[TimeControl "5400+30"]
[WhiteClock "0:02:02"]
[BlackClock "0:00:20"]

1. d4 {[%emt 1:15:22]} Nf6 {[%emt 1:15:22]} 2. c4 {[%emt 0:00:28]} e6 {[%emt 0:00:27]} 3. Nc3 {[%emt 0:00:29]} Bb4 {[%emt 0:00:28]} 4. e3 {[%emt 0:00:30]} O-O {[%emt 0:00:30]} 5. Nge2 {[%emt 0:00:29]} Re8 {[%emt 0:00:29]} 6. a3 {[%emt 0:00:28]} Bf8 {[%emt 0:00:27]} 7. Ng3 {[%emt 0:00:29]} d5 {[%emt 0:00:33]} 8. Be2 {[%emt 0:00:28]} Nc6 {[%emt 0:00:46]} 9. O-O {[%emt 0:01:12]} a6 {[%emt 0:01:00]} 10. b4 {[%emt 0:00:51]} g6 {[%emt 0:01:30]} 11. Bb2 {[%emt 0:00:28]} h5 {[%emt 0:00:28]} 12. Bd3 {[%emt 0:02:45]} Bg7 {[%emt 0:02:15]} 13. Nge2 {[%emt 0:01:10]} dxc4 {[%emt 0:00:49]} 14. Bxc4 {[%emt 0:00:27]} b5 {[%emt 0:00:29]} 15. Ba2 {[%emt 0:00:35]} Bb7 {[%emt 0:00:52]} 16. Nf4 {[%emt 0:00:42]} Ne7 {[%emt 0:01:14]} 17. Nd3 {[%emt 0:01:29]} Nf5 {[%emt 0:00:31]} 18. Nc5 {[%emt 0:00:44]} Bc6 {[%emt 0:00:27]} 19. Qd3 {[%emt 0:00:57]} Ng4 {[%emt 0:02:34]} 20. h3 {[%emt 0:00:56]} Ngxe3 {[%emt 0:02:15]} 21. fxe3 {[%emt 0:00:29]} Nxe3 {[%emt 0:00:28]} 22. d5 {[%emt 0:04:52]} exd5 {[%emt 0:00:53]} 23. Rf2 {[%emt 0:00:35]} Nc4 {[%emt 0:00:27]} 24. Bxc4 {[%emt 0:02:55]} dxc4 {[%emt 0:00:27]} 25. Qxd8 {[%emt 0:00:26]} Rexd8 {[%emt 0:00:31]} 26. N3e4 {[%emt 0:00:36]} Bxb2 {[%emt 0:00:41]} 27. Rxb2 {[%emt 0:00:26]} Bxe4 {[%emt 0:00:27]} 28. Nxe4 {[%emt 0:00:27]} Rd4 {[%emt 0:00:27]} 29. Nc5 {[%emt 0:00:32]} a5 {[%emt 0:00:59]} 30. bxa5 {[%emt 0:00:32]} Rxa5 {[%emt 0:00:28]} 31. Nb7 {[%emt 0:00:56]} c3 {[%emt 0:00:55]} 32. Rc2 {[%emt 0:00:26]} Ra7 {[%emt 0:00:53]} 33. Nc5 {[%emt 0:00:27]} Rc4 {[%emt 0:01:28]} 34. Nb3 {[%emt 0:00:26]} c5 {[%emt 0:00:30]} 35. Kf2 {[%emt 0:00:49]} Kg7 {[%emt 0:00:53]} 36. Kf3 {[%emt 0:01:24]} g5 {[%emt 0:00:29]} 37. g3 {[%emt 0:00:34]} Rd7 {[%emt 0:01:03]} 38. Nc1 {[%emt 0:00:44]} Rd1 {[%emt 0:00:41]} 39. Rb1 {[%emt 0:00:35]} b4 {[%emt 0:00:40]} 40. axb4 {[%emt 0:00:27]} cxb4 {[%emt 0:00:27]} 41. Ra1 {[%emt 0:00:42]} g4+ {[%emt 0:00:42]} 42. hxg4 {[%emt 0:00:26]} hxg4+ {[%emt 0:00:26]} 43. Ke2 {[%emt 0:00:27]} Rg1 {[%emt 0:00:34]} 44. Kf2 {[%emt 0:00:27]} Rh1 {[%emt 0:00:28]} 45. Kg2 {[%emt 0:00:30]} Rd1 {[%emt 0:00:29]} 46. Nb3 {[%emt 0:00:32]} Rxa1 {[%emt 0:00:27]} 47. Nxa1 {[%emt 0:00:26]} Rd4 {[%emt 0:00:32]} 48. Nb3 {[%emt 0:00:30]} Rd1 {[%emt 0:00:27]} 49. Kf2 {[%emt 0:00:36]} Rb1 {[%emt 0:00:27]} 50. Nd4 {[%emt 0:00:29]} Rb2 {[%emt 0:00:59]} 51. Ke3 {[%emt 0:00:26]} Rxc2 {[%emt 0:00:44]} 52. Nxc2 {[%emt 0:00:26]} b3 {[%emt 0:00:27]} 53. Na3 {[%emt 0:00:28]} b2 {[%emt 0:00:35]} 54. Kd3 {[%emt 0:00:27]} f5 {[%emt 0:00:26]} 55. Kc2 {[%emt 0:00:29]} f4 {[%emt 0:00:27]} 56. Nc4 {[%emt 0:00:38]} fxg3 {[%emt 0:00:30]} 57. Ne3 {[%emt 0:00:30]} Kg6 {[%emt 0:00:40]} 58. Nxg4 {[%emt 0:00:28]} g2 {[%emt 0:00:37]} 59. Ne5+ {[%emt 0:00:26]} Kf5 {[%emt 0:00:27]} 60. Nf3 {[%emt 0:00:30]} Ke4 {[%emt 0:00:26]} 61. Ng5+ {[%emt 0:00:43]} Ke3 {[%emt 0:00:27]} 62. Nh3 {[%emt 0:00:29]} b1=Q+ {[%emt 0:00:32]} 63. Kxb1 {[%emt 0:00:28]} Kd2 {[%emt 0:00:26]} 0-1

[Event "9th RTU Rapid 2019"]
[Site "Riga"]
[Date "2019.08.04"]
[Round "4.6"]
[White "Dubrovin, Robert"]
[Black "Saduakassova, Dinara"]
[Result "0-1"]
[WhiteElo "2282"]
[BlackElo "2437"]
[PlyCount "58"]
[EventDate "2019.08.05"]
[EventType "swiss"]
[EventCountry "LAT"]
[TimeControl "5400+30"]
[WhiteClock "0:08:06"]
[BlackClock "0:00:12"]

1. d4 {[%emt 1:15:22]} Nf6 {[%emt 1:15:21]} 2. c4 {[%emt 0:00:26]} e6 {[%emt 0:00:26]} 3. Nc3 {[%emt 0:00:32]} Bb4 {[%emt 0:00:26]} 4. e3 {[%emt 0:00:25]} O-O {[%emt 0:00:28]} 5. a3 {[%emt 0:00:26]} Bxc3+ {[%emt 0:00:31]} 6. bxc3 {[%emt 0:00:26]} c5 {[%emt 0:00:28]} 7. Bd3 {[%emt 0:00:27]} Nc6 {[%emt 0:00:29]} 8. Ne2 {[%emt 0:00:29]} b6 {[%emt 0:01:42]} 9. e4 {[%emt 0:00:40]} d6 {[%emt 0:01:07]} 10. Bg5 {[%emt 0:00:59]} cxd4 {[%emt 0:01:29]} 11. cxd4 {[%emt 0:00:29]} e5 {[%emt 0:00:30]} 12. O-O {[%emt 0:01:47]} h6 {[%emt 0:00:52]} 13. Bh4 {[%emt 0:00:50]} g5 {[%emt 0:00:31]} 14. Bg3 {[%emt 0:01:02]} Nh5 {[%emt 0:00:39]} 15. Rc1 {[%emt 0:03:56]} Nf4 {[%emt 0:02:16]} 16. Bxf4 {[%emt 0:01:15]} gxf4 {[%emt 0:00:30]} 17. c5 {[%emt 0:01:16]} f3 {[%emt 0:01:12]} 18. gxf3 {[%emt 0:01:03]} Bh3 {[%emt 0:00:27]} 19. d5 {[%emt 0:02:50]} Nd4 {[%emt 0:00:31]} 20. Kh1 {[%emt 0:01:20]} Bxf1 {[%emt 0:00:38]} 21. Qxf1 {[%emt 0:02:48]} bxc5 {[%emt 0:00:37]} 22. Qh3 {[%emt 0:01:23]} Qf6 {[%emt 0:00:29]} 23. Nxd4 {[%emt 0:00:31]} cxd4 {[%emt 0:00:31]} 24. Rc7 {[%emt 0:00:47]} Rab8 {[%emt 0:01:00]} 25. Bc2 {[%emt 0:00:52]} Rb2 {[%emt 0:00:54]} 26. a4 {[%emt 0:00:29]} Ra2 {[%emt 0:00:51]} 27. Qg4+ {[%emt 0:00:31]} Qg5 {[%emt 0:00:29]} 28. Kg2 {[%emt 0:00:31]} Qxg4+ {[%emt 0:00:33]} 29. fxg4 {[%emt 0:00:26]} Rb8 {[%emt 0:00:27]} 0-1

[Event "9th RTU Rapid 2019"]
[Site "Riga"]
[Date "2019.08.04"]
[Round "4.7"]
[White "Ioannidis, Evgenios"]
[Black "Bulmaga, Irina"]
[Result "1-0"]
[WhiteElo "2134"]
[BlackElo "2434"]
[PlyCount "87"]
[EventDate "2019.08.05"]
[EventType "swiss"]
[EventCountry "LAT"]
[TimeControl "5400+30"]
[WhiteClock "0:00:09"]
[BlackClock "0:01:37"]

1. d4 {[%emt 1:15:25]} Nf6 {[%emt 1:15:22]} 2. c4 {[%emt 0:00:29]} e6 {[%emt 0:00:27]} 3. Nf3 {[%emt 0:00:54]} b6 {[%emt 0:00:27]} 4. a3 {[%emt 0:00:46]} Bb7 {[%emt 0:00:27]} 5. Nc3 {[%emt 0:00:26]} d5 {[%emt 0:00:29]} 6. cxd5 {[%emt 0:00:27]} Nxd5 {[%emt 0:00:27]} 7. Qc2 {[%emt 0:00:27]} Be7 {[%emt 0:00:33]} 8. e4 {[%emt 0:00:27]} Nxc3 {[%emt 0:00:27]} 9. bxc3 {[%emt 0:00:27]} O-O {[%emt 0:00:36]} 10. Bd3 {[%emt 0:00:27]} c5 {[%emt 0:00:27]} 11. O-O {[%emt 0:00:29]} Qc7 {[%emt 0:00:51]} 12. Qe2 {[%emt 0:00:36]} Rd8 {[%emt 0:00:52]} 13. Rd1 {[%emt 0:00:49]} Nd7 {[%emt 0:00:48]} 14. d5 {[%emt 0:01:55]} e5 {[%emt 0:01:23]} 15. c4 {[%emt 0:00:42]} Nf8 {[%emt 0:01:09]} 16. g3 {[%emt 0:00:56]} Bc8 {[%emt 0:01:07]} 17. Bb2 {[%emt 0:00:28]} Bd6 {[%emt 0:01:18]} 18. h4 {[%emt 0:00:34]} h5 {[%emt 0:00:48]} 19. Qe3 {[%emt 0:00:40]} Qe7 {[%emt 0:00:57]} 20. Be2 {[%emt 0:01:16]} Nh7 {[%emt 0:02:35]} 21. Kg2 {[%emt 0:01:13]} Re8 {[%emt 0:00:48]} 22. Ng5 {[%emt 0:02:19]} g6 {[%emt 0:01:05]} 23. Rh1 {[%emt 0:01:23]} f6 {[%emt 0:01:01]} 24. Nf3 {[%emt 0:01:09]} Bd7 {[%emt 0:01:21]} 25. Nd2 {[%emt 0:01:38]} Rf8 {[%emt 0:00:53]} 26. f4 {[%emt 0:01:01]} Bg4 {[%emt 0:00:26]} 27. Bxg4 {[%emt 0:00:45]} hxg4 {[%emt 0:01:37]} 28. Raf1 {[%emt 0:01:23]} Rae8 {[%emt 0:02:45]} 29. f5 {[%emt 0:00:27]} g5 {[%emt 0:00:57]} 30. Qe2 {[%emt 0:00:29]} Rf7 {[%emt 0:00:47]} 31. hxg5 {[%emt 0:01:29]} Nxg5 {[%emt 0:00:26]} 32. Rh4 {[%emt 0:00:26]} Rh7 {[%emt 0:00:39]} 33. Rfh1 {[%emt 0:00:34]} Rf8 {[%emt 0:00:47]} 34. Qxg4 {[%emt 0:00:53]} Qg7 {[%emt 0:01:03]} 35. Nf3 {[%emt 0:01:01]} Nxf3 {[%emt 0:00:56]} 36. Qxf3 {[%emt 0:01:13]} Rxh4 {[%emt 0:00:27]} 37. Rxh4 {[%emt 0:00:26]} Kf7 {[%emt 0:00:26]} 38. Qh5+ {[%emt 0:00:26]} Ke7 {[%emt 0:00:26]} 39. Rg4 {[%emt 0:00:39]} Qf7 {[%emt 0:00:39]} 40. Qh6 {[%emt 0:00:45]} Rg8 {[%emt 0:00:37]} 41. Rg6 {[%emt 0:00:26]} Rxg6 {[%emt 0:00:36]} 42. fxg6 {[%emt 0:00:27]} Qg8 {[%emt 0:00:30]} 43. Bc1 {[%emt 0:00:43]} Qf8 {[%emt 0:00:39]} 44. Qh7+ {[%emt 0:00:28]} 1-0

[Event "9th RTU Rapid 2019"]
[Site "Riga"]
[Date "2019.08.04"]
[Round "4.8"]
[White "Gagare, Shardul"]
[Black "Shailesh, Dravid"]
[Result "1-0"]
[WhiteElo "2430"]
[BlackElo "2134"]
[PlyCount "113"]
[EventDate "2019.08.05"]
[EventType "swiss"]
[EventCountry "LAT"]
[TimeControl "5400+30"]
[WhiteClock "0:03:12"]
[BlackClock "0:03:18"]

1. Nf3 {[%emt 1:15:23]} Nf6 {[%emt 1:15:22]} 2. g3 {[%emt 0:00:27]} g6 {[%emt 0:00:26]} 3. Bg2 {[%emt 0:00:26]} Bg7 {[%emt 0:00:27]} 4. O-O {[%emt 0:00:28]} O-O {[%emt 0:00:27]} 5. c4 {[%emt 0:00:26]} d6 {[%emt 0:00:27]} 6. Nc3 {[%emt 0:00:27]} e5 {[%emt 0:00:27]} 7. d3 {[%emt 0:00:27]} c6 {[%emt 0:00:33]} 8. Rb1 {[%emt 0:00:31]} a5 {[%emt 0:00:27]} 9. a3 {[%emt 0:00:26]} Re8 {[%emt 0:00:36]} 10. b4 {[%emt 0:01:00]} axb4 11. axb4 {[%emt 0:00:27]} e4 {[%emt 0:00:57]} 12. dxe4 {[%emt 0:00:27]} Nxe4 {[%emt 0:00:27]} 13. Nxe4 {[%emt 0:00:27]} Rxe4 {[%emt 0:00:27]} 14. Bb2 {[%emt 0:00:45]} Rxc4 {[%emt 0:01:10]} 15. Bxg7 {[%emt 0:00:46]} Kxg7 {[%emt 0:00:27]} 16. Ne5 {[%emt 0:00:31]} Rc3 {[%emt 0:01:43]} 17. Qd4 {[%emt 0:00:27]} Rc2 {[%emt 0:00:58]} 18. Nxc6+ {[%emt 0:04:16]} Qf6 {[%emt 0:00:28]} 19. Qxf6+ {[%emt 0:00:27]} Kxf6 {[%emt 0:00:28]} 20. Nd4 {[%emt 0:00:28]} Rd2 {[%emt 0:00:59]} 21. e3 {[%emt 0:00:35]} Nd7 {[%emt 0:02:55]} 22. Nb3 {[%emt 0:02:14]} Rd3 {[%emt 0:01:08]} 23. Rfc1 {[%emt 0:01:16]} Ra3 {[%emt 0:01:29]} 24. Na5 {[%emt 0:02:34]} Nb6 {[%emt 0:00:26]} 25. Bxb7 {[%emt 0:00:31]} Bf5 {[%emt 0:00:31]} 26. Rb2 {[%emt 0:00:43]} Na4 {[%emt 0:01:21]} 27. Rbc2 {[%emt 0:00:26]} d5 {[%emt 0:01:15]} 28. Ba6 {[%emt 0:00:40]} Rdc3 {[%emt 0:00:36]} 29. Rxc3 {[%emt 0:00:26]} Nxc3 {[%emt 0:00:26]} 30. Bf1 {[%emt 0:00:33]} Na2 {[%emt 0:00:49]} 31. Ra1 {[%emt 0:00:26]} Ra4 {[%emt 0:00:57]} 32. Nc6 {[%emt 0:00:32]} Bd7 {[%emt 0:00:41]} 33. Bb5 {[%emt 0:01:03]} Ra3 {[%emt 0:00:27]} 34. Nd4 {[%emt 0:00:28]} Bxb5 {[%emt 0:00:53]} 35. Nxb5 {[%emt 0:00:26]} Ra4 {[%emt 0:00:26]} 36. Nd4 {[%emt 0:01:21]} Nc3 {[%emt 0:00:26]} 37. Rxa4 {[%emt 0:00:52]} Nxa4 {[%emt 0:00:26]} 38. Kf1 {[%emt 0:00:27]} Ke5 {[%emt 0:00:31]} 39. Ke2 {[%emt 0:00:27]} Kd6 {[%emt 0:00:28]} 40. Kd3 {[%emt 0:00:33]} Nb2+ {[%emt 0:00:26]} 41. Kc2 {[%emt 0:00:52]} Nc4 {[%emt 0:00:27]} 42. Kc3 {[%emt 0:00:30]} Ne5 {[%emt 0:00:29]} 43. h3 {[%emt 0:00:26]} h5 {[%emt 0:00:47]} 44. f4 {[%emt 0:00:34]} Nd7 {[%emt 0:00:26]} 45. Nf3 {[%emt 0:00:27]} Nf6 {[%emt 0:00:29]} 46. Ng5 {[%emt 0:00:28]} Kc6 {[%emt 0:02:03]} 47. Kd4 {[%emt 0:00:35]} Kb5 {[%emt 0:00:26]} 48. Ke5 {[%emt 0:00:44]} Nd7+ {[%emt 0:00:33]} 49. Kxd5 {[%emt 0:00:30]} Kxb4 {[%emt 0:00:57]} 50. Nxf7 {[%emt 0:00:27]} Kc3 {[%emt 0:00:26]} 51. Ne5 {[%emt 0:00:41]} Nf8 {[%emt 0:00:27]} 52. Kd6 {[%emt 0:00:58]} Kd2 {[%emt 0:00:29]} 53. Ke7 {[%emt 0:00:27]} Nh7 {[%emt 0:00:58]} 54. Nxg6 {[%emt 0:00:27]} Kxe3 {[%emt 0:00:27]} 55. Kf7 {[%emt 0:00:17]} Kf3 {[%emt 0:00:06]} 56. Kg7 {[%emt 0:00:19]} h4 {[%emt 0:01:25]} 57. gxh4 {[%emt 0:00:55]} 1-0

[Event "9th RTU Rapid 2019"]
[Site "Riga"]
[Date "2019.08.04"]
[Round "4.9"]
[White "Gagare, Shalmali"]
[Black "Kopylov, Michael"]
[Result "0-1"]
[WhiteElo "1984"]
[BlackElo "2414"]
[PlyCount "70"]
[EventDate "2019.08.05"]
[EventType "swiss"]
[EventCountry "LAT"]
[TimeControl "5400+30"]
[WhiteClock "0:01:13"]
[BlackClock "0:00:16"]

1. c4 {[%emt 1:15:25]} f5 {[%emt 1:15:24]} 2. g3 {[%emt 0:00:30]} Nf6 {[%emt 0:00:26]} 3. Bg2 {[%emt 0:00:28]} g6 {[%emt 0:00:26]} 4. Nc3 {[%emt 0:00:28]} Bg7 {[%emt 0:00:27]} 5. Nf3 {[%emt 0:00:28]} O-O {[%emt 0:00:28]} 6. O-O {[%emt 0:00:28]} d6 {[%emt 0:00:27]} 7. d3 {[%emt 0:00:58]} Nc6 {[%emt 0:00:33]} 8. Rb1 {[%emt 0:00:38]} a5 {[%emt 0:00:55]} 9. a3 {[%emt 0:00:29]} e5 {[%emt 0:00:26]} 10. b4 {[%emt 0:00:46]} axb4 {[%emt 0:00:26]} 11. axb4 {[%emt 0:00:27]} h6 {[%emt 0:00:27]} 12. b5 {[%emt 0:00:42]} Ne7 {[%emt 0:00:26]} 13. Bb2 {[%emt 0:00:50]} g5 {[%emt 0:00:32]} 14. Qb3 {[%emt 0:01:26]} Be6 {[%emt 0:02:09]} 15. Nd2 {[%emt 0:00:46]} f4 {[%emt 0:02:21]} 16. Bxb7 {[%emt 0:00:44]} Rb8 {[%emt 0:00:39]} 17. Bg2 {[%emt 0:00:40]} fxg3 {[%emt 0:00:31]} 18. hxg3 {[%emt 0:00:33]} Qe8 {[%emt 0:01:37]} 19. Nde4 {[%emt 0:01:26]} Ng4 {[%emt 0:00:37]} 20. f3 {[%emt 0:01:10]} Ne3 {[%emt 0:00:35]} 21. Rf2 {[%emt 0:00:34]} N7f5 {[%emt 0:00:48]} 22. Nd1 {[%emt 0:01:12]} g4 {[%emt 0:04:41]} 23. Nxe3 {[%emt 0:01:11]} Nxe3 {[%emt 0:00:26]} 24. Bh1 {[%emt 0:01:51]} Qg6 {[%emt 0:00:58]} 25. Bc1 {[%emt 0:02:47]} Nf5 {[%emt 0:00:31]} 26. e3 {[%emt 0:01:32]} Nxg3 {[%emt 0:01:38]} 27. Nxg3 {[%emt 0:00:43]} gxf3 {[%emt 0:00:26]} 28. Rxf3 {[%emt 0:03:37]} Rxf3 {[%emt 0:00:36]} 29. Bxf3 {[%emt 0:00:27]} Qxg3+ {[%emt 0:00:29]} 30. Bg2 {[%emt 0:00:28]} Bh3 {[%emt 0:02:30]} 31. c5+ {[%emt 0:00:27]} Kh8 {[%emt 0:00:39]} 32. Qd5 {[%emt 0:00:28]} Rf8 {[%emt 0:01:03]} 33. Ra1 {[%emt 0:00:30]} e4 {[%emt 0:00:40]} 34. Ra2 {[%emt 0:01:01]} Be5 {[%emt 0:00:30]} 35. Qxe5+ {[%emt 0:01:04]} dxe5 {[%emt 0:00:30]} 0-1

[Event "9th RTU Rapid 2019"]
[Site "Riga"]
[Date "2019.08.04"]
[Round "4.10"]
[White "Korchmar, Vasiliy"]
[Black "Dhyana Patel"]
[Result "1-0"]
[WhiteElo "2413"]
[BlackElo "1900"]
[PlyCount "65"]
[EventDate "2019.08.05"]
[EventType "swiss"]
[EventCountry "LAT"]
[TimeControl "5400+30"]
[WhiteClock "0:11:53"]
[BlackClock "0:08:21"]

1. d4 {[%emt 1:15:22]} Nf6 {[%emt 1:15:22]} 2. c4 {[%emt 0:00:27]} g6 {[%emt 0:00:26]} 3. Nc3 {[%emt 0:00:25]} d5 {[%emt 0:00:26]} 4. Nf3 {[%emt 0:00:26]} Bg7 {[%emt 0:00:26]} 5. Bf4 {[%emt 0:00:27]} O-O {[%emt 0:00:29]} 6. e3 {[%emt 0:00:25]} c5 {[%emt 0:00:26]} 7. dxc5 {[%emt 0:00:27]} Qa5 {[%emt 0:00:37]} 8. Rc1 {[%emt 0:00:40]} dxc4 {[%emt 0:00:26]} 9. Bxc4 {[%emt 0:00:26]} Qxc5 {[%emt 0:00:32]} 10. Bb3 {[%emt 0:00:27]} Qa5 {[%emt 0:00:27]} 11. O-O {[%emt 0:00:41]} Nc6 {[%emt 0:00:26]} 12. h3 {[%emt 0:00:28]} Bf5 {[%emt 0:00:33]} 13. Qe2 {[%emt 0:00:40]} Rfd8 {[%emt 0:00:28]} 14. e4 {[%emt 0:00:33]} Bd7 {[%emt 0:00:50]} 15. e5 {[%emt 0:00:40]} Nh5 {[%emt 0:00:26]} 16. Bh2 {[%emt 0:00:35]} Bh6 {[%emt 0:00:29]} 17. Rcd1 {[%emt 0:01:07]} Nf4 {[%emt 0:00:27]} 18. Bxf4 {[%emt 0:00:35]} Bxf4 {[%emt 0:00:27]} 19. Bxf7+ {[%emt 0:04:06]} Kxf7 {[%emt 0:01:28]} 20. Qc4+ {[%emt 0:00:27]} Kg7 {[%emt 0:00:35]} 21. Qxf4 {[%emt 0:00:27]} Bf5 {[%emt 0:00:31]} 22. Rfe1 {[%emt 0:01:13]} Rxd1 {[%emt 0:00:37]} 23. Rxd1 {[%emt 0:00:28]} Rf8 {[%emt 0:00:27]} 24. Qe3 {[%emt 0:00:53]} Qb4 {[%emt 0:01:04]} 25. Rd2 {[%emt 0:00:34]} Qc4 {[%emt 0:00:42]} 26. Nd4 {[%emt 0:00:45]} Nxd4 {[%emt 0:01:13]} 27. Qxd4 {[%emt 0:00:28]} Qe6 {[%emt 0:00:36]} 28. g4 {[%emt 0:00:52]} b6 {[%emt 0:00:54]} 29. gxf5 {[%emt 0:00:33]} Qxf5 {[%emt 0:00:27]} 30. Qg4 {[%emt 0:01:13]} Qxe5 {[%emt 0:00:56]} 31. Qd4 {[%emt 0:00:26]} Qxd4 {[%emt 0:00:27]} 32. Rxd4 {[%emt 0:00:26]} Rf3 {[%emt 0:00:27]} 33. Kg2 {[%emt 0:00:27]} 1-0

[Event "9th RTU Rapid 2019"]
[Site "Riga"]
[Date "2019.08.04"]
[Round "4.11"]
[White "Krivonosov, Oleg"]
[Black "Stabulnieks, Klavs"]
[Result "1-0"]
[WhiteElo "2445"]
[BlackElo "2136"]
[PlyCount "81"]
[EventDate "2019.08.05"]
[EventType "swiss"]
[EventCountry "LAT"]
[TimeControl "5400+30"]
[WhiteClock "0:00:06"]
[BlackClock "0:06:42"]

1. Nf3 {[%emt 1:15:25]} Nf6 {[%emt 1:15:25]} 2. c4 {[%emt 0:00:30]} g6 {[%emt 0:00:30]} 3. Nc3 {[%emt 0:00:30]} Bg7 {[%emt 0:00:30]} 4. e4 {[%emt 0:00:30]} d6 {[%emt 0:00:30]} 5. d4 {[%emt 0:00:30]} O-O {[%emt 0:00:30]} 6. Be2 {[%emt 0:00:30]} e5 {[%emt 0:00:30]} 7. dxe5 {[%emt 0:00:30]} dxe5 {[%emt 0:00:30]} 8. Qxd8 {[%emt 0:00:30]} Rxd8 {[%emt 0:00:30]} 9. Bg5 {[%emt 0:00:30]} c6 {[%emt 0:01:05]} 10. Nxe5 {[%emt 0:00:30]} Re8 {[%emt 0:00:39]} 11. O-O-O {[%emt 0:00:30]} Na6 {[%emt 0:00:55]} 12. Rd6 {[%emt 0:00:31]} Be6 {[%emt 0:03:41]} 13. f4 {[%emt 0:00:33]} Nc5 {[%emt 0:02:37]} 14. Bf3 {[%emt 0:00:34]} h6 {[%emt 0:01:05]} 15. Bh4 {[%emt 0:00:30]} g5 {[%emt 0:03:20]} 16. Bf2 {[%emt 0:00:31]} b6 {[%emt 0:03:13]} 17. g3 {[%emt 0:00:46]} g4 {[%emt 0:01:25]} 18. Bg2 {[%emt 0:00:33]} Bf8 {[%emt 0:00:39]} 19. Rxc6 {[%emt 0:00:50]} Nfd7 {[%emt 0:00:51]} 20. Bxc5 {[%emt 0:02:09]} Nxe5 {[%emt 0:00:40]} 21. fxe5 {[%emt 0:00:47]} Bxc5 {[%emt 0:00:30]} 22. Nd5 {[%emt 0:00:57]} Bxd5 {[%emt 0:00:32]} 23. cxd5 {[%emt 0:00:51]} Rxe5 {[%emt 0:00:30]} 24. h3 {[%emt 0:00:49]} gxh3 {[%emt 0:00:40]} 25. Rxh3 {[%emt 0:00:30]} Rd8 {[%emt 0:01:03]} 26. Kc2 {[%emt 0:00:41]} h5 {[%emt 0:00:33]} 27. Rh6 {[%emt 0:00:57]} Rd6 {[%emt 0:00:30]} 28. R6xh5 {[%emt 0:01:11]} Rxh5 {[%emt 0:00:30]} 29. Rxh5 {[%emt 0:00:30]} Rg6 {[%emt 0:00:30]} 30. e5 {[%emt 0:01:01]} Rxg3 {[%emt 0:00:30]} 31. Be4 {[%emt 0:00:30]} Re3 {[%emt 0:00:30]} 32. Rh4 {[%emt 0:00:56]} Re2+ {[%emt 0:00:31]} 33. Kb3 {[%emt 0:00:42]} Kg7 {[%emt 0:00:30]} 34. d6 {[%emt 0:00:50]} Rd2 {[%emt 0:00:30]} 35. Rg4+ {[%emt 0:01:12]} Kf8 {[%emt 0:00:30]} 36. Kc4 {[%emt 0:00:43]} Rd4+ {[%emt 0:00:30]} 37. Kb5 {[%emt 0:00:30]} Rb4+ {[%emt 0:00:30]} 38. Kc6 {[%emt 0:00:30]} Rc4 {[%emt 0:00:30]} 39. b3 {[%emt 0:00:55]} Rc1 {[%emt 0:00:30]} 40. Bh7 {[%emt 0:00:48]} f6 {[%emt 0:00:30]} 41. e6 {[%emt 0:00:36]} 1-0

[Event "9th RTU Rapid 2019"]
[Site "Riga"]
[Date "2019.08.04"]
[Round "4.12"]
[White "Mohite, Ranveer"]
[Black "Evchin, Maxim"]
[Result "0-1"]
[WhiteElo "1935"]
[BlackElo "2269"]
[PlyCount "84"]
[EventDate "2019.08.05"]
[EventType "swiss"]
[EventCountry "LAT"]
[TimeControl "5400+30"]
[WhiteClock "0:00:52"]
[BlackClock "0:00:12"]

1. e4 {[%emt 1:15:24]} e5 {[%emt 1:15:26]} 2. Nf3 {[%emt 0:00:28]} Nc6 {[%emt 0:00:25]} 3. Bb5 {[%emt 0:00:27]} g6 {[%emt 0:00:29]} 4. O-O {[%emt 0:00:43]} Bg7 {[%emt 0:00:28]} 5. c3 {[%emt 0:00:27]} a6 {[%emt 0:00:28]} 6. Ba4 {[%emt 0:00:27]} d6 {[%emt 0:00:29]} 7. h3 {[%emt 0:00:32]} Nge7 {[%emt 0:01:02]} 8. d4 {[%emt 0:00:39]} b5 {[%emt 0:00:30]} 9. Bb3 {[%emt 0:00:31]} exd4 {[%emt 0:00:31]} 10. cxd4 {[%emt 0:00:37]} O-O {[%emt 0:00:27]} 11. Nc3 {[%emt 0:00:45]} Na5 {[%emt 0:00:27]} 12. Bc2 {[%emt 0:00:41]} c5 {[%emt 0:00:27]} 13. dxc5 {[%emt 0:01:23]} dxc5 {[%emt 0:00:27]} 14. Bg5 {[%emt 0:00:28]} Qc7 {[%emt 0:01:09]} 15. e5 {[%emt 0:03:06]} Nc4 {[%emt 0:01:26]} 16. Ne4 {[%emt 0:02:09]} Nxe5 {[%emt 0:01:01]} 17. Re1 {[%emt 0:01:28]} Nxf3+ {[%emt 0:02:50]} 18. Qxf3 {[%emt 0:00:26]} Bb7 {[%emt 0:00:27]} 19. Nf6+ {[%emt 0:02:39]} Kh8 {[%emt 0:00:58]} 20. Qg4 {[%emt 0:01:04]} Ng8 {[%emt 0:01:32]} 21. Nxh7 {[%emt 0:02:50]} Kxh7 {[%emt 0:00:53]} 22. Qh4+ {[%emt 0:00:46]} Nh6 {[%emt 0:01:36]} 23. Re7 {[%emt 0:00:35]} Qb6 {[%emt 0:00:33]} 24. Rae1 {[%emt 0:00:46]} Bd5 {[%emt 0:02:13]} 25. R1e5 {[%emt 0:00:26]} Qd6 {[%emt 0:03:24]} 26. Bxh6 {[%emt 0:01:45]} Bxh6 {[%emt 0:01:24]} 27. g4 {[%emt 0:00:56]} Ra7 {[%emt 0:01:18]} 28. Rh5 {[%emt 0:01:12]} Qf4 {[%emt 0:01:13]} 29. Rxh6+ {[%emt 0:00:39]} Qxh6 {[%emt 0:00:26]} 30. Qxh6+ {[%emt 0:00:26]} Kxh6 {[%emt 0:00:26]} 31. Rxa7 {[%emt 0:00:27]} Bxa2 {[%emt 0:00:26]} 32. Rxa6 {[%emt 0:00:31]} Be6 {[%emt 0:00:32]} 33. Rc6 {[%emt 0:00:35]} Rc8 {[%emt 0:00:28]} 34. Rxc8 {[%emt 0:00:29]} Bxc8 {[%emt 0:00:26]} 35. f3 {[%emt 0:00:28]} Kg5 {[%emt 0:00:31]} 36. Kf2 {[%emt 0:00:27]} Kf4 {[%emt 0:00:26]} 37. h4 {[%emt 0:00:27]} Bb7 {[%emt 0:00:31]} 38. Bd3 {[%emt 0:00:33]} Bxf3 {[%emt 0:00:30]} 39. Bxb5 {[%emt 0:00:32]} Bxg4 {[%emt 0:00:02]} 40. Be8 {[%emt 0:00:31]} Be6 {[%emt 0:00:52]} 41. Ke2 {[%emt 0:00:37]} Kg4 {[%emt 0:00:31]} 42. Kd3 {[%emt 0:00:26]} Kxh4 {[%emt 0:00:28]} 0-1